bitfinex-derivatives/quotes_SOLF0:USTF0_20240815
["timestamp","ask_amount","ask_price","bid_price","bid_amount"]
[1723750650078,0.05077874,139.04,139.02,0.05078932]
[1723750651171,0.05077874,139.04,139.02,3.64678932]
[1723750651567,0.05077874,139.04,139.02,0.05078932]
[1723750652174,0.05077874,139.04,139.03,3.5958]
[1723750652472,0.05077874,139.04,139.02,0.05078932]
[1723750653273,3.5958,139.03,139.02,0.05078932]
[1723750653471,34.6858,139.03,139.02,0.05078932]
[1723750653670,32.3918,139.03,138.89,32.3965]
[1723750653979,31.09,139.0,138.92,7.88]
[1723750654176,31.09,138.98,138.87,32.3861]
[1723750654374,31.09,138.98,138.89,3.57893167]
[1723750654573,31.09,139.0,138.89,3.57893167]
[1723750654980,31.09,139.0,138.92,3.5986]
[1723750655176,0.04777563,138.95,138.89,31.09]
[1723750655381,0.04777563,138.95,138.94,3.5981]
[1723750656077,0.04777563,138.95,138.91,31.09]
[1723750656576,0.04777563,138.95,138.94,3.5981]
[1723750657468,38.97,139.08,138.94,7.88]
[1723750657671,3.5955,139.04,138.95,32.404]
[1723750657973,38.97,139.08,138.95,32.404]
[1723750658170,3.5953,139.05,138.95,32.404]
[1723750658382,3.63609428,139.07,138.95,33.6402]
[1723750658580,31.09,139.08,138.99,3.5966]
[1723750658769,0.04529823,139.02,139.0,0.05380699]
[1723750658974,31.09,139.08,139.0,0.05380699]
[1723750659173,0.05258247,139.02,139.0,3.65030699]
[1723750659377,3.5953,139.05,139.0,0.05380699]
[1723750659581,0.05049276,139.02,139.0,0.05380699]
[1723750659877,0.05049276,139.02,139.01,3.5963]
[1723750660072,31.09,139.1,139.0,7.93380699]
[1723750660279,7.45841222,139.12,139.05,3.5952]
[1723750660470,3.5942,139.1,139.02,31.09]
[1723750660675,0.05316983,139.03,139.02,31.09]
[1723750660879,31.09,139.11,139.03,3.5957]
[1723750661081,3.5945,139.08,139.03,3.5957]
[1723750661282,34.75169018,139.11,139.04,3.5954]
[1723750661482,34.75169018,139.11,139.0,7.88]
[1723750661483,1.3076,139.12,139.02,31.09]
[1723750661876,1.3076,139.12,139.03,1.3211]
[1723750662079,31.09,139.16,139.04,31.09]
[1723750662288,0.05438077,139.08,139.06,0.05298279]
[1723750662471,3.5947,139.07,139.06,0.05298279]
[1723750662673,3.5947,139.07,139.03,1.3211]
[1723750663186,0.04895446,139.08,139.05,0.05492089]
[1723750664280,3.5947,139.07,139.05,0.05492089]
[1723750664680,0.04895446,139.08,139.05,0.05492089]
[1723750665480,0.04895446,139.08,139.05,3.65002089]
[1723750666583,0.04895446,139.08,139.05,0.05492089]
[1723750667084,0.04895446,139.08,139.05,3.65002089]
[1723750667681,0.04895446,139.08,139.06,3.595]
[1723750668376,0.04895446,139.08,139.05,0.05492089]
[1723750669080,3.58468385,139.2,139.07,31.09]
[1723750669383,4.29005352,139.18,139.1,31.09]
[1723750669586,3.592,139.18,139.11,7.88]
[1723750670185,31.09,139.2,139.11,11.49220615]
[1723750670489,0.05369157,139.16,139.13,0.05468485]
[1723750670889,3.5929,139.14,139.13,0.05468485]
[1723750671086,3.5929,139.14,139.1,11.474]
[1723750671285,3.5929,139.14,139.12,0.0468441]
[1723750671493,3.5932,139.13,139.12,0.0468441]
[1723750671791,0.05064444,139.15,139.12,0.0468441]
[1723750671987,3.5932,139.13,139.12,0.0468441]
[1723750673087,0.05064444,139.15,139.12,0.0468441]
[1723750673492,0.05064444,139.15,139.12,3.6402441]
[1723750673793,0.05064444,139.15,139.12,0.0468441]
[1723750674592,0.05064444,139.15,139.12,31.1368441]
[1723750674893,1.3533,139.24,139.12,31.09]
[1723750675094,1.3533,139.24,139.13,1.2545]
[1723750675497,1.3533,139.24,139.15,31.09]
[1723750675694,1.3533,139.24,139.16,7.88]
[1723750675895,0.04745935,139.21,139.18,0.0545624]
[1723750676494,3.5916,139.2,139.18,0.0545624]
[1723750676816,0.04745935,139.21,139.18,0.0545624]
[1723750676987,0.04745935,139.21,139.18,3.6464624]
[1723750677299,0.04745935,139.21,139.18,0.0545624]
[1723750677497,3.5916,139.19,139.18,0.0545624]
[1723750677694,0.04745935,139.21,139.18,0.0545624]
[1723750678298,0.04745935,139.21,139.18,3.59171946]
[1723750678690,31.09,139.31,139.18,31.1445624]
[1723750678892,32.4455,139.33,139.2,31.09]
[1723750679097,3.67762386,139.31,139.2,31.09]
[1723750679303,3.67762386,139.31,139.22,3.5908]
[1723750679304,3.59,139.26,139.22,3.5908]
[1723750679504,3.59,139.26,139.23,11.43516807]
[1723750680001,3.63626864,139.26,139.23,15.0774823]
[1723750680203,3.63626864,139.26,139.23,7.93171423]
[1723750680204,0.04626864,139.26,139.23,7.93171423]
[1723750680500,0.04626864,139.26,139.23,0.05171423]
[1723750680697,3.5904,139.24,139.23,0.05171423]
[1723750681098,34.67784689,139.24,139.15,28.74]
[1723750681502,34.67784689,139.24,139.14,7.88]
[1723750681700,3.5918,139.19,139.14,7.88]
[1723750681901,34.67784689,139.24,139.14,7.88]
[1723750682306,7.88,139.28,139.14,7.88]
[1723750682307,31.09,139.26,139.14,7.88]
[1723750682506,31.09,139.26,139.17,3.592]
[1723750682703,0.04977912,139.2,139.18,0.05411804]
[1723750683299,3.5909,139.22,139.18,0.05411804]
[1723750683505,166.80101715,139.3,139.18,31.14411804]
[1723750683506,32.3981,139.3,139.18,31.14411804]
[1723750683710,1.3081,139.3,139.23,3.5905]
[1723750684011,0.0467586,139.25,139.23,31.13616788]
[1723750684203,197.83121715,139.35,139.25,3.5901]
[1723750684506,4.81418852,139.35,139.25,31.09]
[1723750684704,31.09,139.37,139.29,0.05451052]
[1723750684902,0.05069779,139.31,139.29,0.05451052]
[1723750685200,0.05069779,139.31,139.21,7.82]
[1723750685201,31.09,139.3,139.21,7.82]
[1723750685403,31.09,139.3,139.21,11.4109]
[1723750685404,34.62328149,139.3,139.21,11.4109]
[1723750685601,31.09,139.33,139.21,7.82]
[1723750685806,31.09,139.33,139.23,3.5904]
[1723750686001,38.91,139.35,139.2,34.69004199]
[1723750686196,0.69657744,139.34,139.23,31.09]
[1723750686398,34.75359394,139.37,139.26,3.5898]
[1723750686605,3.5893,139.28,139.26,0.05205367]
[1723750687007,3.66608464,139.34,139.23,31.09]
[1723750687309,31.09,139.37,139.23,32.4122]
[1723750687503,3.5887,139.31,139.26,0.05152126]
[1723750687704,0.05016929,139.28,139.27,3.60865625]
[1723750688106,31.09,139.35,139.24,1.3049]
[1723750688304,31.09,139.35,139.26,0.04981394]
[1723750688506,3.55599755,139.36,139.27,7.17062067]
[1723750688703,31.09,139.37,139.27,7.17062067]
[1723750688704,0.04907519,139.29,139.27,7.17062067]
[1723750688909,0.04907519,139.29,139.26,31.09]
[1723750689209,31.09,139.35,139.27,3.60157806]
[1723750689407,31.09,139.37,139.27,3.65408387]
[1723750689602,3.5893,139.28,139.27,3.65408387]
[1723750689806,0.05236346,139.29,139.22,7.82]
[1723750690005,0.05236346,139.29,139.18,59.83]
[1723750690006,31.09,139.3,139.18,59.83]
[1723750690207,31.09,139.28,139.18,3.6313669]
[1723750690407,31.09,139.28,139.26,0.05441574]
[1723750690706,34.72316141,139.28,139.17,7.82]
[1723750690911,31.09,139.25,139.17,7.82]
[1723750691208,31.09,139.25,139.15,2.651]
[1723750691209,3.5913,139.21,139.15,2.651]
[1723750691413,34.72316141,139.28,139.15,2.651]
[1723750691712,0.69709731,139.27,139.15,2.651]
[1723750692106,0.04851172,139.23,139.2,0.05406893]
[1723750692405,3.5909,139.22,139.2,0.05406893]
[1723750692603,0.04851172,139.23,139.2,0.05406893]
[1723750692808,31.13851172,139.23,139.13,7.82]
[1723750693012,3.5914,139.2,139.14,31.09]
[1723750693401,3.5912,139.21,139.14,31.09]
[1723750693606,7.82,139.27,139.14,31.09]
[1723750693806,0.69719494,139.26,139.14,31.09]
[1723750694007,7.82,139.27,139.16,31.09]
[1723750694209,0.04586688,139.22,139.19,0.04398358]
[1723750694412,0.04586688,139.22,139.2,3.5914]
[1723750694709,0.04586688,139.22,139.19,34.70639063]
[1723750694914,3.5906,139.24,139.19,34.66240705]
[1723750695115,31.09,139.3,139.17,1.3147]
[1723750695310,31.09,139.28,139.17,7.21565434]
[1723750695512,0.04558496,139.22,139.19,0.04398358]
[1723750695709,3.63668496,139.22,139.19,0.04398358]
[1723750695905,0.04558496,139.22,139.19,0.04398358]
[1723750696104,31.09,139.26,139.13,7.82]
[1723750696310,38.91,139.26,139.13,7.82]
[1723750696511,0.05465896,139.22,139.19,0.04398358]
[1723750697410,3.5914,139.2,139.19,0.04398358]
[1723750698714,3.5912,139.21,139.19,0.04398358]
[1723750698920,0.05465896,139.22,139.19,0.04398358]
[1723750699413,3.5914,139.2,139.19,0.04398358]
[1723750699625,31.09,139.21,139.1,1.2806]
[1723750699814,33.6517,139.21,139.1,1.2806]
[1723750700417,33.6517,139.21,139.08,7.82]
[1723750700418,31.09,139.19,139.08,7.82]
[1723750700618,31.09,139.16,139.04,3.64419654]
[1723750700819,31.09,139.16,139.03,31.09]
[1723750701120,3.5939,139.11,139.03,31.09]
[1723750701318,3.5939,139.11,139.03,34.65439807]
[1723750701520,3.5939,139.11,139.06,3.5948]
[1723750702216,0.05253211,139.08,139.07,3.5947]
[1723750702423,0.05253211,139.08,139.03,34.65439807]
[1723750702719,3.594,139.1,139.03,34.65439807]
[1723750702915,3.5937,139.11,139.05,31.09]
[1723750703119,0.05012862,139.07,139.02,1.282]
[1723750703322,165.49291715,139.24,139.11,3.5935]
[1723750703521,38.91,139.22,139.09,31.09]
[1723750703918,38.91,139.22,139.1,3.60250075]
[1723750704223,38.91,139.22,139.07,7.82]
[1723750704224,11.40995566,139.23,139.12,31.09]
[1723750704426,11.40995566,139.23,139.12,34.6833]
[1723750704723,0.04761962,139.18,139.15,0.05012862]
[1723750705423,31.09,139.17,139.07,38.91]
[1723750705619,31.09,139.17,139.05,34.69274369]
[1723750705829,31.09,139.15,139.06,3.5949]
[1723750706012,0.04761962,139.18,139.07,31.09]
[1723750706625,31.09,139.18,139.07,31.09]
[1723750706818,0.05413016,139.14,139.07,31.09]
[1723750707519,3.5933,139.13,139.07,31.09]
[1723750707824,0.05413016,139.14,139.05,36.0089703]
[1723750708023,0.05413016,139.14,139.05,39.6040703]
[1723750708024,3.5944,139.09,139.05,39.6040703]
[1723750708326,3.59355905,139.16,139.07,31.09]
[1723750708524,31.09,139.2,139.07,31.09]
[1723750708723,0.04895491,139.08,139.07,31.09]
[1723750709127,3.60038681,139.15,139.07,34.6846]
[1723750709324,31.09,139.17,139.07,31.09]
[1723750709524,0.04745019,139.09,139.07,31.09]
[1723750709727,0.04745019,139.09,139.08,3.5943]
[1723750710023,31.09,139.2,139.08,3.5943]
[1723750710224,3.5934,139.13,139.09,3.5941]
[1723750710429,0.04546147,139.1,139.09,3.5941]
[1723750711837,0.04546147,139.1,139.07,31.09]
[1723750712032,0.04546147,139.1,139.05,36.0089703]
[1723750712333,0.04546147,139.1,139.08,3.5943]
[1723750713033,0.04546147,139.1,139.07,34.6846]
[1723750713625,0.04546147,139.1,139.08,3.5945]
[1723750714029,0.04546147,139.1,139.07,31.09]
[1723750714319,0.04546147,139.1,139.05,1.3403]
[1723750714630,3.5944,139.09,139.05,4.9354]
[1723750715031,0.04546147,139.1,139.05,1.3403]
[1723750715226,0.04546147,139.1,139.04,3.64377145]
[1723750715227,0.04546147,139.1,139.04,3.5954]
[1723750715732,0.04546147,139.1,139.03,34.64787922]
[1723750716331,0.04546147,139.1,139.05,31.09]
[1723750716831,0.04546147,139.1,139.06,3.5948]
[1723750717322,0.04546147,139.1,139.07,3.5947]
[1723750718228,0.04546147,139.1,139.07,31.09]
[1723750718830,0.04546147,139.1,139.09,3.5942]
[1723750719032,0.04546147,139.1,139.07,31.09]
[1723750719222,0.04546147,139.1,138.9,60.37778153]
[1723750719425,34.71865323,139.1,138.98,31.09]
[1723750719623,1.3716,139.09,138.98,34.72495017]
[1723750719826,0.0471604,139.05,138.99,3.5967]
[1723750720635,0.0471604,139.05,139.0,31.09]
[1723750720833,7.181,139.2,138.97,1.3395]
[1723750720834,7.74,139.14,139.03,31.09]
[1723750721135,3.5942,139.09,139.06,3.5948]
[1723750721334,2.6779,139.16,139.05,31.09]
[1723750721527,2.6779,139.16,139.07,31.09]
[1723750722435,0.04658385,139.13,139.1,0.0471604]
[1723750722830,31.09,139.12,139.01,31.09]
[1723750723229,3.5951,139.06,139.02,3.5959]
[1723750723426,31.09,139.1,139.0,4.85417706]
[1723750723636,31.09,139.1,139.0,1.2885]
[1723750723838,3.5954,139.05,139.0,1.2885]
[1723750724332,3.5954,139.05,139.01,7.17107705]
[1723750724731,3.5956,139.04,139.01,7.17107705]
[1723750724932,0.05266462,139.06,139.0,1.2885]
[1723750725339,0.05266462,139.06,138.98,3.5969]
[1723750725730,36.05014991,139.09,138.96,31.09]
[1723750726040,0.05014759,139.03,138.99,3.5966]
[1723750726834,0.05014759,139.03,139.0,3.58345582]
[1723750727041,0.05014759,139.03,138.98,31.09]
[1723750727229,3.64604759,139.03,139.0,3.5964]
[1723750727428,31.09,139.15,139.01,31.09]
[1723750727635,31.09,139.15,139.05,31.09]
[1723750727934,3.5941,139.1,139.06,3.5948]
[1723750728342,31.09,139.15,139.05,34.69395532]
[1723750728534,31.09,139.15,139.04,3.5955]
[1723750728734,0.05318459,139.09,139.07,0.05014759]
[1723750729135,31.09,139.15,139.07,0.05014759]
[1723750729432,0.05391251,139.09,139.07,0.05014759]
[1723750729837,31.09,139.15,139.07,0.05014759]
[1723750730327,3.5945,139.08,139.07,0.05014759]
[1723750730532,0.05210562,139.12,139.07,0.05014759]
[1723750730735,2.6269,139.16,139.07,3.64484759]
[1723750730935,0.05175501,139.11,139.08,7.74]
[1723750731241,0.05175501,139.11,139.09,3.5942]
[1723750734233,3.5942,139.09,139.08,0.05014759]
[1723750734440,3.594,139.1,139.08,0.05014759]
[1723750734737,0.05175501,139.11,139.08,0.05014759]
[1723750735630,0.05175501,139.11,139.09,3.64645729]
[1723750735835,0.05175501,139.11,139.08,0.05014759]
[1723750736534,3.5941,139.1,139.08,0.05014759]
[1723750736737,0.05175501,139.11,139.08,0.05014759]
[1723750738033,3.67054173,139.1,139.08,0.05014759]
[1723750738237,3.5942,139.09,139.08,0.05014759]
[1723750739846,0.05175501,139.11,139.08,0.05014759]
[1723750740640,0.05175501,139.11,139.08,3.64454759]
[1723750740839,3.5942,139.09,139.08,0.05014759]
[1723750741235,7.16044575,139.09,139.08,0.05014759]
[1723750741545,3.5942,139.09,139.08,0.05014759]
[1723750741845,7.17842259,139.09,139.08,0.05014759]
[1723750742045,7.17842259,139.09,139.03,7.74]
[1723750742046,3.5955,139.04,139.03,7.74]
[1723750742244,3.5955,139.04,139.0,3.5964]
[1723750742245,31.09,139.08,139.0,1.387]
[1723750743043,3.5957,139.04,139.0,4.89370752]
[1723750743240,31.09,139.08,139.0,1.387]
[1723750743241,0.04773519,139.05,139.0,1.387]
[1723750743443,0.04773519,139.05,138.96,7.74]
[1723750743643,31.09,139.06,138.96,7.74]
[1723750743839,0.05089417,139.02,138.96,7.74]
[1723750744134,3.5969,138.99,138.96,7.74]
[1723750744547,0.05238421,138.99,138.96,7.74]
[1723750744743,3.64918421,138.99,138.96,7.74]
[1723750744943,0.05238421,138.99,138.96,7.74]
[1723750745149,31.09,138.97,138.79,7.204]
[1723750745445,38.83,138.97,138.85,2.6282]
[1723750745743,0.05005456,138.89,138.85,6.21473618]
[1723750746047,38.83,138.97,138.85,2.6282]
[1723750746242,0.05080833,138.88,138.85,6.16942802]
[1723750746448,32.4699,139.0,138.87,31.09]
[1723750746643,36.10782712,139.0,138.87,31.09]
[1723750746844,3.5978,138.96,138.9,3.599]
[1723750747147,36.10782712,139.0,138.9,3.599]
[1723750747440,32.3613,139.02,138.9,31.09]
[1723750747647,0.05485231,138.96,138.94,0.04652938]
[1723750747950,4.96732943,139.03,138.93,31.09]
[1723750748146,0.04894723,138.96,138.92,7.74]
[1723750748341,31.09,139.0,138.94,0.05080833]
[1723750748847,0.05264708,138.98,138.95,3.68112436]
[1723750749142,1.3799,139.07,138.97,31.09]
[1723750749344,1.3799,139.07,138.98,11.28505307]
[1723750749536,1.3799,139.07,138.98,7.74]
[1723750749743,1.2713,139.11,138.99,31.09]
[1723750749941,0.69878294,139.1,138.99,31.09]
[1723750750141,31.09,139.07,138.81,122.3]
[1723750750345,31.09,139.07,138.95,7.74]
[1723750750541,31.09,139.05,138.96,7.74]
[1723750750744,31.09,139.01,138.93,1.3832]
[1723750751039,31.09,139.01,138.89,3.5992]
[1723750751040,31.09,138.99,138.89,3.5992]
[1723750751245,31.09,138.99,138.87,28.78]
[1723750751246,31.09,138.99,138.92,7.74]
[1723750751845,31.09,138.99,138.9,7.74]
[1723750752249,31.1408694,138.97,138.94,0.04671367]
[1723750753249,1.3831,138.96,138.85,2.6416]
[1723750753447,1.3831,138.96,138.85,10.3816]
[1723750754041,3.5988,138.92,138.86,3.6001]
[1723750754452,3.65221125,138.92,138.86,3.6001]
[1723750754752,31.09,138.97,138.86,3.56001547]
[1723750754947,31.09,138.97,138.85,10.3816]
[1723750755650,31.09,138.99,138.86,31.09]
[1723750755949,0.05388445,138.92,138.9,0.0539424]
[1723750756252,31.09,138.99,138.86,34.67171691]
[1723750756648,0.0497233,138.92,138.9,0.04962543]
[1723750757049,31.09,138.94,138.66,31.09]
[1723750757247,31.09,138.94,138.82,2.6455]
[1723750757453,3.5991,138.91,138.82,2.6455]
[1723750757652,34.72678149,138.94,138.8,7.74]
[1723750757952,25.92,138.88,138.8,7.74]
[1723750758150,25.92,138.86,138.77,3.9911]
[1723750758745,3.6011,138.83,138.77,3.9911]
[1723750758948,3.65614887,138.83,138.77,3.9911]
[1723750759152,3.65614887,138.83,138.78,3.6021]
[1723750759955,0.05504887,138.83,138.79,3.602]
[1723750760347,0.05504887,138.83,138.81,3.6013]
[1723750761354,0.05504887,138.83,138.77,35.1111]
[1723750761550,0.05504887,138.83,138.79,31.12]
[1723750761747,0.05504887,138.83,138.82,3.6012]
[1723750762754,31.12,138.94,138.82,31.12]
[1723750762960,31.12,138.97,138.85,31.12]
[1723750763257,31.12,138.97,138.85,34.75573456]
[1723750763451,3.9295,138.98,138.89,31.12]
[1723750763452,1.2889,138.98,138.89,31.12]
[1723750763655,34.64036437,139.01,138.9,7.74]
[1723750763856,35.92926437,139.01,138.9,11.3303644]
[1723750764157,0.05416502,138.95,138.92,0.04997281]
[1723750764556,35.92926437,139.01,138.9,7.74]
[1723750767661,3.5985,138.93,138.92,0.05349058]
[1723750769554,34.69196947,138.94,138.92,0.05349058]
[1723750769555,0.04587376,138.94,138.92,0.05349058]
[1723750772258,0.04587376,138.94,138.92,3.65209058]
[1723750772467,0.04587376,138.94,138.92,0.05349058]
[1723750774160,31.16587376,138.94,138.92,0.05349058]
[1723750774673,31.16587376,138.94,138.86,1.3586]
[1723750775072,0.04587376,138.94,138.86,1.3586]
[1723750775757,3.64417376,138.94,138.86,1.3586]
[1723750776161,3.64417376,138.94,138.9,3.599]
[1723750776365,0.04587376,138.94,138.86,1.3586]
[1723750776672,0.04587376,138.94,138.87,31.12]
[1723750776868,0.04587376,138.94,138.93,3.5984]
[1723750778572,0.04587376,138.94,138.92,3.5985]
[1723750778769,3.5973,138.98,138.91,2.673]
[1723750779070,101.71070632,139.17,138.96,31.12]
[1723750779261,2.6742,139.14,139.01,31.12]
[1723750779467,0.69895406,139.13,139.02,9.0484]
[1723750780060,0.69895406,139.13,139.02,1.3084]
[1723750780264,0.69895406,139.13,139.04,3.5954]
[1723750780466,0.05479716,139.09,139.06,0.04839551]
[1723750780961,0.05479716,139.09,139.07,7.74]
[1723750781469,31.17479716,139.09,139.06,0.04839551]
[1723750782061,0.05479716,139.09,139.06,0.04839551]
[1723750783177,0.05479716,139.09,139.06,0.04839551]
[1723750783876,0.05479716,139.09,139.06,31.16839551]
[1723750784078,0.05479716,139.09,139.07,3.5359335]
[1723750784272,0.05479716,139.09,139.07,3.5945]
[1723750784466,0.05479716,139.09,139.08,3.59526728]
[1723750784869,0.05479716,139.09,139.07,1.3518]
[1723750785172,0.05479716,139.09,139.07,7.74]
[1723750785875,2.7519,139.21,139.09,3.594]
[1723750785876,28.6319,139.21,139.09,3.594]
[1723750786175,28.6319,139.21,139.08,25.88]
[1723750786176,32.18592598,139.21,139.08,25.88]
[1723750786381,32.18592598,139.21,139.1,3.5938]
[1723750786673,32.18592598,139.21,139.11,25.88]
[1723750786674,6.30592598,139.21,139.11,25.88]
[1723750787071,32.18592598,139.21,139.09,25.88]
[1723750787275,0.04841309,139.17,139.15,0.05105292]
[1723750791470,31.07,139.24,139.15,0.05105292]
[1723750791671,3.67020511,139.24,139.15,0.05105292]
[1723750791873,1.298,139.26,139.15,0.05105292]
[1723750792079,0.6974065,139.25,139.15,3.5927]
[1723750792275,3.55274902,139.24,139.15,3.5927]
[1723750792775,31.07,139.2,139.18,0.04796064]
[1723750793090,31.07,139.2,139.12,2.6492]
[1723750793091,34.65795677,139.2,139.12,10.3692]
[1723750793476,36.04295677,139.2,139.11,7.72]
[1723750794275,7.72,139.25,139.14,0.05170832]
[1723750794479,0.0518971,139.17,139.16,31.07]
[1723750794681,0.69763028,139.25,139.16,31.07]
[1723750795074,0.69763028,139.25,139.17,7.72]
[1723750795274,0.04663272,139.18,139.17,7.72]
[1723750795976,0.69726924,139.26,139.17,7.72]
[1723750796283,0.69726924,139.26,139.18,31.07]
[1723750796581,1.385,139.27,139.18,32.3727]
[1723750796774,1.385,139.27,139.18,33.7038]
[1723750796975,3.5911,139.22,139.18,2.6338]
[1723750797177,1.385,139.27,139.19,7.72]
[1723750797372,0.05293724,139.24,139.19,7.72]
[1723750797775,0.05293724,139.24,139.22,0.05214336]
[1723750798686,0.05293724,139.24,139.22,7.77214336]
[1723750801202,0.05293724,139.24,139.22,0.05214336]
[1723750801395,3.5906,139.23,139.22,0.05214336]
[1723750801589,3.67499832,139.24,139.13,38.79]
[1723750801790,31.12293724,139.24,139.13,38.79]
[1723750802091,31.12293724,139.24,139.05,28.74]
[1723750802092,31.07,139.17,139.05,28.74]
[1723750802301,31.07,139.17,139.07,7.72]
[1723750802502,3.53659954,139.16,139.07,14.96117866]
[1723750802800,31.07,139.17,139.07,7.72]
[1723750802993,0.04534278,139.13,139.11,0.04859355]
[1723750803395,3.5935,139.12,139.11,0.04859355]
[1723750805301,0.04534278,139.13,139.11,3.64229355]
[1723750805496,0.04534278,139.13,139.11,0.04859355]
[1723750806397,0.04534278,139.13,139.12,3.67314544]
[1723750806600,0.04534278,139.13,139.12,3.5935]
[1723750806798,0.04534278,139.13,139.12,7.26808307]
[1723750807000,3.5917,139.19,139.15,3.5926]
[1723750807205,1.3503,139.22,139.15,3.5926]
[1723750807503,3.5914,139.2,139.15,3.64151757]
[1723750807697,3.5914,139.2,139.15,3.5925]
[1723750808097,3.5912,139.21,139.13,31.07]
[1723750808405,0.0546895,139.19,139.18,31.07]
[1723750808606,165.49291715,139.37,139.19,31.07]
[1723750808607,3.38792273,139.3,139.19,31.07]
[1723750808806,0.69712273,139.29,139.22,3.5907]
[1723750808997,2.6908,139.3,139.18,7.72]
[1723750809202,31.07,139.26,139.14,31.07]
[1723750809500,31.07,139.28,139.14,32.371]
[1723750809702,31.07,139.26,139.14,1.301]
[1723750810008,0.05085911,139.21,139.19,0.04980903]
[1723750810300,31.12085911,139.21,139.11,7.72]
[1723750810708,3.5923,139.17,139.11,7.72]
[1723750810901,31.07,139.21,139.11,7.72]
[1723750811101,2.6595,139.22,139.12,31.07]
[1723750811299,3.5917,139.19,139.12,31.07]
[1723750811504,0.0547199,139.18,139.16,0.04886117]
[1723750812812,1.3516,139.26,139.16,31.11886117]
[1723750813005,3.5903,139.25,139.16,31.11886117]
[1723750813309,31.07,139.25,139.17,7.72]
[1723750813498,3.5923,139.17,139.13,1.2896]
[1723750813700,31.07,139.21,139.13,9.0096]
[1723750813904,31.07,139.19,139.13,7.72]
[1723750814105,31.07,139.16,139.05,32.3865]
[1723750814314,31.12306256,139.16,139.14,0.04938887]
[1723750814816,3.5928,139.15,139.1,3.5937]
[1723750815024,31.07,139.16,139.05,33.7376]
[1723750815312,3.5937,139.12,139.05,2.6676]
[1723750815808,2.6678,139.15,139.05,2.6676]
[1723750816023,2.6678,139.15,139.09,0.04773006]
[1723750816400,0.05368361,139.1,139.09,31.11773006]
[1723750816604,3.5911,139.21,139.09,38.83773006]
[1723750816814,2.7043,139.24,139.14,31.07]
[1723750817017,6.25663305,139.24,139.14,31.07]
[1723750817202,3.5914,139.2,139.14,31.07]
[1723750817516,3.61126908,139.23,139.12,31.07]
[1723750817709,33.7743,139.24,139.12,31.07]
[1723750817710,3.5918,139.19,139.12,31.07]
[1723750818009,3.5918,139.19,139.1,3.51035602]
[1723750818010,0.05415376,139.18,139.16,31.11548697]
[1723750818217,3.5904,139.24,139.18,3.5917]
[1723750818407,165.49291715,139.28,139.18,31.07]
[1723750818717,169.08231715,139.28,139.18,31.07]
[1723750819013,165.49291715,139.28,139.18,31.07]
[1723750819417,3.5897,139.27,139.21,3.5911]
[1723750819621,1.0,139.3,139.21,31.07]
[1723750819820,0.04627209,139.24,139.22,7.77354088]
[1723750820310,1.0,139.3,139.22,7.77354088]
[1723750820510,31.07,139.29,139.22,7.77354088]
[1723750820715,0.05418111,139.24,139.22,7.77354088]
[1723750820912,0.05418111,139.24,139.22,11.36444088]
[1723750821105,4.60231157,139.3,139.22,7.77354088]
[1723750821312,1.0,139.3,139.22,7.77354088]
[1723750821512,0.05280481,139.24,139.22,7.77354088]
[1723750821905,4.589,139.3,139.23,31.07]
[1723750822412,0.04862564,139.24,139.23,34.6606]
[1723750822607,1.0,139.3,139.23,31.07]
[1723750822810,1.0,139.3,139.25,0.04908323]
[1723750823010,1.0,139.3,139.26,3.5898]
[1723750823212,1.0,139.3,139.25,0.04908323]
[1723750823915,0.05150346,139.29,139.25,0.04908323]
[1723750824612,3.5896,139.27,139.25,0.04908323]
[1723750824911,0.05150346,139.29,139.25,0.04908323]